[Event "76th GEO-ch Women 2019"]
[Site "Tbilisi"]
[Date "2019.03.28"]
[Round "9.3"]
[White "Tsatsalashvili, Keti"]
[Black "Gvetadze, Sofio"]
[Result "1-0"]
[ECO "D37"]
[WhiteElo "2326"]
[BlackElo "2321"]
[Annotator "NA"]
[PlyCount "131"]
[EventDate "2019.03.19"]
[EventType "swiss"]
[EventCountry "GEO"]
[SourceTitle "playchess.com"]
[Source "ChessBase"]
[SourceQuality "1"]
[TimeControl "40/5400+30:1800+30"]

{[%evp 8,81,24,20,18,28,10,25,14,21,21,27,30,29,32,27,32,15,18,0,17,18,17,9,12,21,16,14,16,14,21,9,22,24,45,43,55,45,52,62,70,63,78,69,75,62,72,63,68,70,73,67,65,70,73,71,68,76,81,32767,60,64,66,63,75,64,85,61,81,84,95,78,77,72,85,79]} 1. d4 {[%emt 0:00:00]} Nf6 {[%emt 0:00:00]} 2. c4 {[%emt 0:00:00]} e6 {[%emt 0:00:00]} 3. Nf3 {[%emt 0:00:00]} d5 {[%emt 0:00:13]} 4. Nc3 {[%emt 0:00:12]} Nbd7 {[%emt 0:00:55]} 5. cxd5 {[%emt 0:01:37]} exd5 {[%emt 0:00:05]} 6. Bg5 {[%emt 0:00:34]} c6 {[%emt 0:00:08]} 7. e3 {[%emt 0:00:27]} Bd6 {[%emt 0:00:16]} 8. Bd3 {[%emt 0:00:42]} O-O {[%emt 0:00:17]} 9. Qc2 {[%emt 0:00:45]} h6 {[%emt 0:01:26]} 10. Bh4 {[%emt 0:00:10]} Re8 {[%emt 0:02:51]} 11. O-O {[%emt 0:01:05]} Nf8 {[%emt 0:00:17]} 12. Rfe1 {[%emt 0:01:57] D36: Queen's Gambit Declined: Exchange Variation: Main line (5 Bg5 c6 6 Qc2)} (12. Rae1 Bg4 13. Nd2 Be6 14. f4 Be7 15. Nf3 Ne4 16. Bxe7 Qxe7 17. Bxe4 dxe4 18. Qxe4 Qb4 19. Qc2 Bc4 {1-0 (44) Bareev,E (2729)-Ljubojevic,L (2570) Monte Carlo 2003}) 12... Bg4 {[%emt 0:07:39]} 13. Nd2 {[%emt 0:03:41]} Be6 {[%emt 0:12:33]} 14. Nf1 {[%emt 0:04:01]} Rc8 {[%emt 0:00:42]} 15. Bg3 $146 {[%emt 0:03:51]} ({Predecessor:} 15. Rad1 Be7 16. a3 Bg4 17. f3 Bh5 18. Ng3 Bg6 19. Nf5 Bxf5 20. Bxf5 {½-½ (57) Larsen,S (2310)-Rorvik,J (2162) Copenhagen 2003}) 15... c5 {[%emt 0:02:58]} 16. Bxd6 {[%emt 0:01:07]} Qxd6 {[%emt 0:00:05]} 17. dxc5 {[%emt 0:00:37]} Qxc5 {[%emt 0:04:45]} 18. Rad1 {[%emt 0:03:49]} N8d7 {[%emt 0:10:49]} 19. Ng3 {[%emt 0:05:55]} Ne5 {[%emt 0:05:16]} 20. Qb1 {[%emt 0:03:55]} Nc4 {[%emt 0:01:35]} 21. Bxc4 {[%emt 0:00:38]} Qxc4 {[%emt 0:02:14]} 22. Rd4 {[%emt 0:01:21]} Qc5 {[%emt 0:00:06]} 23. Nge2 {[%emt 0:04:02]} Rcd8 {[%emt 0:25:38]} 24. h3 {[%emt 0:10:17]} Rd7 {[%emt 0:01:05]} 25. Red1 {[%emt 0:00:20]} Red8 {[%emt 0:00:15]} 26. Nf4 {[%emt 0:01:06]} Qc6 {[%emt 0:00:12]} 27. a3 {[%emt 0:02:07]} Qb6 {[%emt 0:02:07]} 28. Qc2 {[%emt 0:03:03]} Qc6 {[%emt 0:01:07]} 29. Qa4 {[%emt 0:01:44]} Qxa4 {[%emt 0:00:22]} 30. Rxa4 {[%emt 0:01:50]} a6 {[%emt 0:01:37]} 31. Rad4 {[%emt 0:00:27]} Kf8 {[%emt 0:00:19]} 32. f3 {[%emt 0:03:32]} Ke7 {[%emt 0:00:56]} 33. g4 {[%emt 0:00:49]} g5 {[%emt 0:02:12]} 34. Nd3 {[%emt 0:01:32]} h5 {[%emt 0:00:43]} 35. Kg2 {[%emt 0:01:46]} hxg4 {[%emt 0:00:19]} 36. hxg4 {[%emt 0:00:34]} Rc8 {[%emt 0:03:43]} 37. Nb4 {[%emt 0:04:40]} Rcd8 {[%emt 0:00:19]} 38. Kg3 {[%emt 0:00:12]} Rd6 {[%emt 0:00:33]} 39. R1d2 {[%emt 0:01:44]} R6d7 {[%emt 0:01:01]} 40. Nd3 {[%emt 0:00:00]} Rh8 {[%emt 0:00:00]} 41. Nf2 $16 {[%emt 0:01:47]} Rh4 {[%emt 0:13:14]} 42. Nh3 {[%emt 0:07:20]} Rd8 {[%emt 0:00:12]} 43. Nxg5 {[%emt 0:03:05]} Rdh8 {[%emt 0:00:11]} 44. Rg2 {[%emt 0:01:01]} Rh1 {[%emt 0:00:19]} 45. Rdd2 {[%emt 0:01:41]} Rc8 {[%emt 0:04:13]} 46. Rh2 {[%emt 0:06:01]} Rxh2 {[%emt 0:00:04]} 47. Kxh2 {[%emt 0:00:30]} Rc5 {[%emt 0:00:16]} 48. Nh3 {[%emt 0:00:23]} Nd7 {[%emt 0:00:23]} 49. Nf4 {[%emt 0:02:43]} Nb6 {[%emt 0:00:04]} 50. Kg3 {[%emt 0:02:36]} Kf6 {[%emt 0:01:04]} 51. e4 {[%emt 0:02:40]} Nc4 {[%emt 0:00:04]} 52. Ncxd5+ {[%emt 0:00:28]} Kg7 {[%emt 0:00:02]} 53. Rc2 {[%emt 0:01:28]} Rc6 {[%emt 0:00:05]} 54. Ne7 {[%emt 0:05:13]} Rc7 {[%emt 0:00:34]} 55. Nfd5 {[%emt 0:02:14]} Bxd5 {[%emt 0:00:18]} 56. Nxd5 {[%emt 0:00:04]} Rc6 {[%emt 0:00:04]} 57. Nb4 {[%emt 0:01:11]} Rc8 {[%emt 0:00:12]} 58. b3 {[%emt 0:00:28]} Nd6 {[%emt 0:00:04]} 59. Rxc8 {[%emt 0:00:08]} Nxc8 {[%emt 0:00:05]} 60. e5 {[%emt 0:00:38]} Nb6 {[%emt 0:00:03]} 61. Kf4 {[%emt 0:00:59]} Nd7 {[%emt 0:00:07]} 62. Nd3 {[%emt 0:00:15]} Kg6 {[%emt 0:00:29]} 63. Ke4 {[%emt 0:00:55]} Kg5 {[%emt 0:00:09]} 64. Kd5 {[%emt 0:00:30]} Kh4 {[%emt 0:00:04]} 65. Kd6 {[%emt 0:00:13]} Nb6 {[%emt 0:00:08]} 66. Ke7 {[%emt 0:00:18]} 1-0

[Event "76th GEO-ch Women 2019"]
[Site "Tbilisi"]
[Date "2019.03.29"]
[Round "10.1"]
[White "Melia, Salome"]
[Black "Mikadze, Miranda"]
[Result "1-0"]
[ECO "B01"]
[WhiteElo "2385"]
[BlackElo "2266"]
[Annotator "NA"]
[PlyCount "103"]
[EventDate "2019.03.19"]
[EventType "swiss"]
[EventCountry "GEO"]
[SourceTitle "playchess.com"]
[Source "ChessBase"]
[SourceQuality "1"]
[TimeControl "40/5400+30:1800+30"]

1. e4 {[%emt 0:00:00]} d5 {[%emt 0:00:00]} 2. exd5 {[%emt 0:00:00]} Qxd5 {[%emt 0:00:00]} 3. Nc3 {[%emt 0:00:00]} Qd6 {[%emt 0:00:00]} 4. d4 {[%emt 0:00:14]} Nf6 {[%emt 0:00:00]} 5. Nf3 {[%emt 0:00:06]} c6 {[%emt 0:00:00]} 6. Ne5 {[%emt 0:00:41]} Nbd7 {[%emt 0:00:33] B01: Scandinavian Defence} 7. Nc4 {[%emt 0:00:07]} Qc7 {[%emt 0:00:02]} 8. Qf3 {[%emt 0:00:13]} Nb6 {[%emt 0:00:17]} 9. Bf4 {[%emt 0:00:10]} Qd8 {[%emt 0:00:03]} 10. Be5 {[%emt 0:08:04]} Bg4 {[%emt 0:06:56]} 11. Qe3 $146 {[%emt 0:17:04]} ({Predecessor:} 11. Qg3 h5 12. f3 Be6 13. Ne3 Nbd5 14. Ncxd5 Nxd5 15. Nxd5 Qxd5 {½-½ (26) Grischuk,A (2719)-Tiviakov,S (2669) Sochi 2006}) 11... Nbd5 {[%emt 0:10:32]} 12. Nxd5 {[%emt 0:00:45]} Qxd5 {[%emt 0:03:04]} (12... Nxd5 $14 13. Qd2 f6) 13. f3 {[%emt 0:06:04]} Bf5 {[%emt 0:09:32]} 14. Qb3 {[%emt 0:04:44]} b6 {[%emt 0:04:56]} 15. Ne3 {[%emt 0:01:33]} Qxb3 {[%emt 0:00:30]} 16. axb3 {[%emt 0:00:39]} Bc8 {[%emt 0:00:18]} 17. c3 {[%emt 0:06:41]} Kd7 {[%emt 0:15:53]} 18. b4 {[%emt 0:02:49]} e6 {[%emt 0:06:40]} 19. Nc4 {[%emt 0:03:30]} Bb7 {[%emt 0:00:08]} 20. Bg3 {[%emt 0:07:05]} b5 {[%emt 0:05:14]} 21. Ne5+ {[%emt 0:05:14]} Ke8 {[%emt 0:00:05]} 22. Nd3 {[%emt 0:04:08]} Nh5 {[%emt 0:05:13]} 23. Be2 {[%emt 0:01:16]} Nxg3 {[%emt 0:00:44]} 24. hxg3 {[%emt 0:00:03]} Bd6 {[%emt 0:00:05]} 25. f4 {[%emt 0:00:42]} h6 {[%emt 0:04:14]} 26. Kf2 {[%emt 0:01:10]} Kd8 {[%emt 0:02:46]} 27. Bf3 {[%emt 0:00:18]} Kc7 {[%emt 0:00:07]} 28. Ne5 {[%emt 0:08:24]} Rhf8 {[%emt 0:02:47]} 29. Rh5 {[%emt 0:00:42]} a6 {[%emt 0:02:01]} 30. Nd3 {[%emt 0:00:56]} Rad8 {[%emt 0:04:32]} 31. g4 {[%emt 0:01:35]} Kb6 {[%emt 0:03:55]} 32. g3 $14 {[%emt 0:03:50]} Bc8 {[%emt 0:06:51]} 33. Nc5 {[%emt 0:02:30]} Rfe8 {[%emt 0:01:38]} 34. Rah1 {[%emt 0:02:50]} f6 {[%emt 0:04:42]} 35. Nd3 {[%emt 0:05:29]} e5 {[%emt 0:01:12]} 36. fxe5 {[%emt 0:07:50]} g6 {[%emt 0:00:01]} 37. Rxh6 {[%emt 0:00:12]} fxe5 {[%emt 0:00:01]} 38. Re1 {[%emt 0:00:49]} exd4 {[%emt 0:00:09]} 39. Rxe8 {[%emt 0:00:15]} Rxe8 {[%emt 0:00:04]} 40. Rxg6 {[%emt 0:00:00]} Rd8 {[%emt 0:00:00]} 41. cxd4 {[%emt 0:03:22]} Bb7 {[%emt 0:02:44]} 42. Nc5 {[%emt 0:04:44]} Ba8 {[%emt 0:00:04]} 43. Rg7 {[%emt 0:12:11]} a5 {[%emt 0:00:24]} 44. bxa5+ {[%emt 0:00:04]} Kxa5 {[%emt 0:00:06]} 45. Rd7 {[%emt 0:01:49]} Rxd7 {[%emt 0:00:19]} 46. Nxd7 {[%emt 0:00:02]} Be7 {[%emt 0:01:36]} 47. Ne5 {[%emt 0:01:39]} Ka4 {[%emt 0:02:22]} 48. Bxc6 {[%emt 0:01:29]} Bxc6 {[%emt 0:00:07]} 49. Nxc6 {[%emt 0:00:04]} Bf6 {[%emt 0:00:38]} 50. b4 {[%emt 0:02:06]} Kb3 {[%emt 0:00:51]} 51. Ke3 {[%emt 0:00:16]} Kc4 {[%emt 0:00:02]} 52. Ke4 {[%emt 0:00:07] Kd5+} 1-0

[Event "76th GEO-ch Women 2019"]
[Site "Tbilisi"]
[Date "2019.03.29"]
[Round "10.5"]
[White "Purtseladze, Maka"]
[Black "Tsatsalashvili, Keti"]
[Result "1/2-1/2"]
[ECO "E20"]
[WhiteElo "2282"]
[BlackElo "2326"]
[Annotator "NA"]
[PlyCount "213"]
[EventDate "2019.03.19"]
[EventType "swiss"]
[EventCountry "GEO"]
[SourceTitle "playchess.com"]
[Source "ChessBase"]
[SourceQuality "1"]
[TimeControl "40/5400+30:1800+30"]

1. d4 {[%emt 0:00:00]} Nf6 {[%emt 0:00:00]} 2. c4 {[%emt 0:00:00]} e6 {[%emt 0:00:18]} 3. Nc3 {[%emt 0:00:00]} Bb4 {[%emt 0:00:30]} 4. f3 {[%emt 0:00:00]} c5 {[%emt 0:02:10]} 5. a3 {[%emt 0:02:55]} Bxc3+ {[%emt 0:00:57]} 6. bxc3 {[%emt 0:00:04]} d6 {[%emt 0:00:34]} 7. e4 {[%emt 0:03:16]} Nc6 {[%emt 0:01:53]} 8. Be3 {[%emt 0:02:00]} b6 {[%emt 0:01:12]} 9. Bd3 {[%emt 0:14:47]} Na5 {[%emt 0:04:25] LiveBook: 12 Games E24: Nimzo-Indian: Sämisch: Unusual Black 5th moves and 5...c5 sidelines} (9... e5 10. Ne2 h6 11. O-O g5 12. Ng3 Na5 13. Qe2 Qe7 14. Rfe1 Be6 15. Rab1 Rg8 16. Rb5 Qc7 17. Reb1 {½-½ (36) Moskalenko,V (2591)-Aroshidze,L (2539) Barcelona 2011}) 10. Bg5 {[%emt 0:11:39]} h6 {[%emt 0:02:45]} 11. Bh4 {[%emt 0:01:44]} g5 $146 {[%emt 0:03:17]} ({Predecessor:} 11... Ba6 12. f4 Qd7 13. e5 dxe5 14. fxe5 Nh7 15. Qe2 cxd4 16. Nf3 Rc8 17. O-O Bxc4 18. cxd4 Bxd3 19. Qxd3 {0-1 (37) Jaeger,F (2046)-Nilson,B (2117) ICCF email 2009}) 12. Bf2 {[%emt 0:02:17]} Ba6 {[%emt 0:01:51]} 13. h4 {[%emt 0:01:19]} Rg8 {[%emt 0:01:57]} 14. hxg5 {[%emt 0:00:04]} hxg5 {[%emt 0:00:15]} 15. Qe2 {[%emt 0:08:47]} e5 {[%emt 0:04:44]} 16. d5 {[%emt 0:06:11]} Qe7 {[%emt 0:01:22]} 17. g4 {[%emt 0:00:35]} O-O-O {[%emt 0:01:38]} 18. Be3 {[%emt 0:02:27]} Nd7 {[%emt 0:01:59]} 19. Rh5 {[%emt 0:01:39]} f6 {[%emt 0:02:57]} 20. Qa2 {[%emt 0:00:43]} Nf8 {[%emt 0:03:03]} 21. Ne2 {[%emt 0:00:05]} Ng6 {[%emt 0:01:39]} 22. Ng3 {[%emt 0:17:41]} Nh4 {[%emt 0:01:55]} 23. Kf2 {[%emt 0:05:31]} Qd7 {[%emt 0:06:06]} 24. a4 {[%emt 0:00:05]} Rdf8 {[%emt 0:08:29]} 25. Rh1 {[%emt 0:00:32]} Qe8 {[%emt 0:01:03]} 26. Rh7 {[%emt 0:02:31]} Kb8 {[%emt 0:03:43]} 27. Nf5 {[%emt 0:03:28]} Nxf5 {[%emt 0:03:06]} 28. gxf5 {[%emt 0:00:02]} Bc8 $15 {[%emt 0:03:55]} 29. Kg3 {[%emt 0:00:57]} Bd7 {[%emt 0:03:56]} 30. Bc2 {[%emt 0:02:33]} Rh8 {[%emt 0:07:42]} 31. Bd1 {[%emt 0:00:06]} Kc8 {[%emt 0:02:58]} 32. Bc1 {[%emt 0:01:06]} Nb7 {[%emt 0:01:17]} 33. R1h6 {[%emt 0:00:59]} Rxh7 {[%emt 0:00:48]} 34. Rxh7 {[%emt 0:00:05]} Rh8 {[%emt 0:02:03]} 35. Qh2 {[%emt 0:00:09]} Rxh7 {[%emt 0:00:34]} 36. Qxh7 {[%emt 0:00:04]} Qf8 {[%emt 0:00:52]} 37. Kg4 {[%emt 0:02:43]} Nd8 {[%emt 0:02:43]} 38. Kg3 {[%emt 0:01:42]} Qf7 {[%emt 0:03:39]} 39. Qh8 {[%emt 0:04:56]} Be8 {[%emt 0:00:32]} 40. Kf2 {[%emt 0:00:00]} Kc7 {[%emt 0:00:00]} 41. Kg1 {[%emt 0:17:12]} Nb7 {[%emt 0:02:02]} 42. Qh2 {[%emt 0:01:09]} Qh5 {[%emt 0:01:14]} 43. Qe2 {[%emt 0:01:30]} Qh3 {[%emt 0:03:04]} 44. Be3 {[%emt 0:00:32]} Qg3+ {[%emt 0:02:48]} 45. Kf1 {[%emt 0:01:39]} Bh5 {[%emt 0:01:39]} 46. Bg1 {[%emt 0:01:21]} Qh3+ {[%emt 0:01:18]} 47. Ke1 {[%emt 0:00:20]} Na5 {[%emt 0:00:58]} 48. Be3 {[%emt 0:00:57]} Qh1+ {[%emt 0:03:10]} 49. Kd2 {[%emt 0:07:22]} Be8 {[%emt 0:01:40]} 50. Bf2 {[%emt 0:03:34]} Qg2 {[%emt 0:01:16]} 51. Ke3 {[%emt 0:00:52]} Bd7 {[%emt 0:01:58]} 52. Qa2 {[%emt 0:01:13]} Qf1 {[%emt 0:03:03]} 53. Be2 {[%emt 0:00:05]} Qc1+ {[%emt 0:00:48]} 54. Kd3 {[%emt 0:00:05]} Bc8 {[%emt 0:00:36]} 55. Be3 {[%emt 0:00:11]} Qh1 {[%emt 0:00:19]} 56. Kd2 {[%emt 0:00:48]} Ba6 {[%emt 0:00:27]} 57. Bf2 {[%emt 0:01:26]} Qh2 {[%emt 0:00:33]} 58. Ke1 {[%emt 0:00:13]} Qf4 {[%emt 0:00:58]} 59. Qd2 {[%emt 0:00:45]} Qxd2+ {[%emt 0:00:56]} 60. Kxd2 {[%emt 0:00:04]} Bxc4 {[%emt 0:00:28]} 61. Bd1 {[%emt 0:01:50]} Kd7 {[%emt 0:02:41]} 62. Be1 {[%emt 0:00:32]} Ke7 {[%emt 0:00:48]} 63. Ke3 {[%emt 0:00:21]} Kf7 {[%emt 0:00:22]} 64. Kf2 {[%emt 0:01:11]} Kg7 {[%emt 0:00:26]} 65. Kg3 {[%emt 0:00:36]} Bb3 {[%emt 0:00:11]} 66. Bxb3 {[%emt 0:00:07]} Nxb3 {[%emt 0:00:07]} 67. c4 {[%emt 0:00:15]} a5 {[%emt 0:03:50]} 68. Bc3 {[%emt 0:00:20]} Nd4 {[%emt 0:01:28]} 69. Bb2 {[%emt 0:01:19]} Kh6 {[%emt 0:00:21]} 70. Kg4 {[%emt 0:00:31]} Ne2 {[%emt 0:00:41]} 71. Ba1 {[%emt 0:00:32]} Nc1 {[%emt 0:01:05]} 72. Bb2 {[%emt 0:00:34]} Nd3 {[%emt 0:00:06]} 73. Ba3 {[%emt 0:00:47]} Nf2+ {[%emt 0:01:00]} 74. Kg3 {[%emt 0:00:04]} Nd1 {[%emt 0:00:29]} 75. Bc1 {[%emt 0:00:15]} Kg7 {[%emt 0:03:35]} 76. Kg4 {[%emt 0:00:48]} Kf7 {[%emt 0:02:15]} 77. Kg3 {[%emt 0:00:42]} Ke7 {[%emt 0:02:25]} 78. Kg4 {[%emt 0:00:04]} Ke8 {[%emt 0:06:20]} 79. Kh5 {[%emt 0:00:17]} Kf7 {[%emt 0:00:03]} 80. Kg4 {[%emt 0:01:01]} Ke7 {[%emt 0:00:27]} 81. Kh5 {[%emt 0:00:09]} Kf7 {[%emt 0:01:48]} 82. Kg4 {[%emt 0:00:03]} Nc3 {[%emt 0:01:05]} 83. Bb2 {[%emt 0:00:04]} Nxa4 {[%emt 0:00:23]} 84. Ba1 {[%emt 0:00:02]} b5 {[%emt 0:00:26]} 85. cxb5 {[%emt 0:00:04]} Nb6 {[%emt 0:00:42]} 86. Bb2 {[%emt 0:01:46]} Nc4 {[%emt 0:00:32]} 87. Kh5 {[%emt 0:00:47]} Ke7 {[%emt 0:00:51]} 88. Bc1 {[%emt 0:01:08]} a4 {[%emt 0:00:16]} 89. Kg6 {[%emt 0:00:16]} a3 {[%emt 0:02:23]} 90. Bxa3 {[%emt 0:00:34]} Nxa3 {[%emt 0:00:37]} 91. b6 {[%emt 0:00:03]} Kd7 {[%emt 0:01:56]} 92. Kxf6 {[%emt 0:00:05]} c4 {[%emt 0:00:32]} 93. b7 {[%emt 0:01:33]} Kc7 {[%emt 0:00:08]} 94. Ke6 {[%emt 0:00:34]} c3 {[%emt 0:00:44]} 95. f6 {[%emt 0:00:04]} c2 {[%emt 0:00:03]} 96. f7 {[%emt 0:00:04]} c1=Q {[%emt 0:00:07]} 97. f8=Q {[%emt 0:00:37]} Kxb7 {[%emt 0:00:47]} 98. Qxd6 {[%emt 0:00:17]} Qc8+ {[%emt 0:01:26]} 99. Kf6 {[%emt 0:00:11]} Nc4 {[%emt 0:00:41]} 100. Qb4+ {[%emt 0:00:11]} Nb6 {[%emt 0:00:48]} 101. Qe7+ {[%emt 0:02:16]} Ka6 {[%emt 0:00:36]} 102. Qa3+ {[%emt 0:00:22]} Kb7 {[%emt 0:00:05]} 103. Qe7+ {[%emt 0:00:22]} Ka6 {[%emt 0:00:01]} 104. Kxe5 {[%emt 0:00:46]} Qc3+ {[%emt 0:00:20]} 105. Kf5 {[%emt 0:00:14]} Qxf3+ {[%emt 0:00:08]} 106. Kxg5 {[%emt 0:00:06]} Nxd5 {[%emt 0:00:42]} 107. exd5 1/2-1/2

[Event "76th GEO-ch Women 2019"]
[Site "Tbilisi"]
[Date "2019.03.29"]
[Round "10.6"]
[White "Khomeriki, Nino"]
[Black "Khurtsilava, Inga"]
[Result "0-1"]
[ECO "E18"]
[WhiteElo "2347"]
[BlackElo "2234"]
[Annotator "NA"]
[PlyCount "124"]
[EventDate "2019.03.19"]
[EventType "swiss"]
[EventCountry "GEO"]
[SourceTitle "playchess.com"]
[Source "ChessBase"]
[SourceQuality "1"]
[TimeControl "40/5400+30:1800+30"]

1. d4 {[%emt 0:00:00]} Nf6 {[%emt 0:07:51]} 2. c4 {[%emt 0:00:00]} e6 {[%emt 0:00:03]} 3. Nf3 {[%emt 0:00:00]} b6 {[%emt 0:00:09]} 4. g3 {[%emt 0:00:00]} Bb7 {[%emt 0:02:34]} 5. Bg2 {[%emt 0:00:02] LiveBook: 9220 Games} Be7 {[%emt 0:02:13]} 6. O-O {[%emt 0:00:17]} O-O {[%emt 0:00:08]} 7. Nc3 {[%emt 0:00:05]} d5 {[%emt 0:00:52]} 8. cxd5 {[%emt 0:04:26]} exd5 {[%emt 0:01:56]} 9. b3 {[%emt 0:00:43]} Nbd7 {[%emt 0:01:41]} 10. Bb2 {[%emt 0:01:25]} Ne4 {[%emt 0:01:42]} 11. Qc2 {[%emt 0:07:33] E17: Queen's Indian: 4 g3 Bb7 5 Bg2 Be7} f5 {[%emt 0:02:18]} 12. e3 $146 {[%emt 0:02:12]} ({Predecessor:} 12. Rad1 c6 {½-½ (77) Eingorn,V (2560)-Psakhis,L (2555) Moscow 1986}) 12... c6 {[%emt 0:02:46]} 13. Rad1 {[%emt 0:01:50]} Qe8 {[%emt 0:02:04]} 14. Ne2 {[%emt 0:06:02]} Bd6 {[%emt 0:01:13]} 15. Ne1 {[%emt 0:11:03]} Qh5 {[%emt 0:03:45]} 16. Nd3 {[%emt 0:07:31]} Rae8 {[%emt 0:09:15]} 17. f3 {[%emt 0:08:20]} Ng5 {[%emt 0:07:39]} 18. Nef4 {[%emt 0:02:44]} Qh6 {[%emt 0:00:54]} 19. Bc1 {[%emt 0:00:07]} Ne6 {[%emt 0:03:41]} 20. Nxe6 Qxe6 {[%emt 0:00:28]} 21. Rfe1 {[%emt 0:18:45]} c5 {[%emt 0:03:47]} 22. Qd2 {[%emt 0:01:29]} Qf7 {[%emt 0:01:30]} 23. dxc5 {[%emt 0:05:03]} bxc5 {[%emt 0:00:43]} 24. Bb2 {[%emt 0:00:05]} Re7 {[%emt 0:03:23]} 25. Qa5 {[%emt 0:06:08]} Rfe8 {[%emt 0:15:46]} 26. Qxa7 {[%emt 0:01:55]} Bc6 {[%emt 0:01:17]} 27. Qa6 {[%emt 0:02:30]} Nb8 {[%emt 0:00:39]} 28. Qa5 $14 {[%emt 0:00:05]} Ra7 {[%emt 0:02:25]} 29. Qd2 {[%emt 0:00:05]} Rxa2 {[%emt 0:00:27]} 30. Nc1 {[%emt 0:00:10]} Ra6 {[%emt 0:06:53]} 31. f4 {[%emt 0:00:18]} c4 {[%emt 0:01:03]} 32. b4 {[%emt 0:04:08]} Rb6 {[%emt 0:03:50]} 33. Bc3 {[%emt 0:00:08]} Na6 {[%emt 0:00:27]} 34. Na2 {[%emt 0:00:21]} Nc7 {[%emt 0:01:00]} 35. Rb1 {[%emt 0:04:33]} Reb8 {[%emt 0:01:08]} 36. Red1 {[%emt 0:00:33]} Qe7 {[%emt 0:01:40]} 37. h4 {[%emt 0:03:34]} R6b7 {[%emt 0:01:26]} 38. h5 {[%emt 0:00:39]} h6 {[%emt 0:00:04]} 39. Bf3 {[%emt 0:00:29]} Kh8 {[%emt 0:00:25]} 40. Kf2 {[%emt 0:00:00]} Ra8 {[%emt 0:00:00]} 41. Rb2 {[%emt 0:13:03]} Ra3 {[%emt 0:06:29]} 42. Qc1 {[%emt 0:09:06]} Rb3 {[%emt 0:12:49]} 43. Qb1 {[%emt 0:01:54]} Rxb2+ {[%emt 0:02:56]} 44. Qxb2 {[%emt 0:00:44]} Rb8 {[%emt 0:00:23]} 45. Qc2 {[%emt 0:03:11]} Qe6 {[%emt 0:01:10]} 46. g4 {[%emt 0:04:57]} fxg4 {[%emt 0:09:56]} 47. f5 {[%emt 0:03:09]} Ba4 {[%emt 0:01:49]} 48. fxe6 {[%emt 0:01:51]} Bxc2 {[%emt 0:00:06]} 49. Rg1 {[%emt 0:00:41]} g3+ {[%emt 0:00:51]} 50. Kg2 {[%emt 0:00:17]} Bf5 {[%emt 0:00:43]} 51. Rd1 {[%emt 0:00:48]} Ra8 {[%emt 0:02:58]} 52. Nc1 {[%emt 0:00:21]} Ra3 {[%emt 0:01:45]} 53. Bb2 {[%emt 0:00:38]} Rxe3 54. b5 c3 {[%emt 0:01:23]} 55. Ba1 {[%emt 0:00:20]} Nxe6 {[%emt 0:00:21]} 56. Ne2 {[%emt 0:00:44]} c2 {[%emt 0:00:47]} 57. Rf1 {[%emt 0:00:34]} Be4 {[%emt 0:00:29]} 58. Nc1 {[%emt 0:00:49]} Rxf3 {[%emt 0:00:30]} 59. Rxf3 {[%emt 0:00:05]} Ng5 {[%emt 0:00:04]} 60. b6 {[%emt 0:00:18]} Bxf3+ {[%emt 0:00:16]} 61. Kf1 {[%emt 0:00:05]} g2+ {[%emt 0:00:18]} 62. Kf2 {[%emt 0:00:04]} Bc5+ {[%emt 0:00:07]} 0-1

[Event "76th GEO-ch Women 2019"]
[Site "Tbilisi"]
[Date "2019.03.30"]
[Round "11.1"]
[White "Khurtsilava, Inga"]
[Black "Melia, Salome"]
[Result "0-1"]
[ECO "A01"]
[WhiteElo "2234"]
[BlackElo "2385"]
[Annotator "NA"]
[PlyCount "69"]
[EventDate "2019.03.19"]
[EventType "swiss"]
[EventCountry "GEO"]
[SourceTitle "playchess.com"]
[Source "ChessBase"]
[SourceQuality "1"]
[TimeControl "40/5400+30:1800+30"]

1. b3 {[%emt 0:00:00]} e5 {[%emt 0:00:00]} 2. Bb2 {[%emt 0:00:00]} Nc6 {[%emt 0:00:01]} 3. e3 {[%emt 0:00:04]} Nf6 {[%emt 0:00:44]} 4. Nf3 {[%emt 0:01:29]} e4 {[%emt 0:01:51]} 5. Nd4 {[%emt 0:00:51]} Nxd4 {[%emt 0:00:35]} 6. Bxd4 {[%emt 0:00:43]} Be7 {[%emt 0:00:16]} 7. c4 {[%emt 0:01:08]} b6 {[%emt 0:03:16]} 8. Nc3 {[%emt 0:07:02]} Bb7 {[%emt 0:01:24]} 9. Qc2 {[%emt 0:03:48]} O-O {[%emt 0:01:35]} 10. Rd1 {[%emt 0:08:49]} Re8 {[%emt 0:05:48]} 11. g3 {[%emt 0:08:12]} c5 {[%emt 0:09:18]} 12. Bxf6 {[%emt 0:00:52]} Bxf6 {[%emt 0:00:08]} 13. Bg2 {[%emt 0:02:55]} Bxc3 {[%emt 0:15:47]} 14. dxc3 {[%emt 0:31:35]} d6 {[%emt 0:05:37]} 15. O-O $11 {[%emt 0:03:26]} Re6 {[%emt 0:01:57]} 16. a4 {[%emt 0:03:08]} a5 {[%emt 0:04:39]} 17. Qe2 {[%emt 0:05:34]} Qf6 {[%emt 0:02:09]} 18. Rc1 {[%emt 0:00:21]} Qe5 {[%emt 0:02:16]} 19. Rfd1 {[%emt 0:00:06]} Rae8 {[%emt 0:01:44]} 20. Rd2 {[%emt 0:01:22]} h5 {[%emt 0:03:40]} 21. h4 {[%emt 0:03:13]} Rh6 {[%emt 0:00:28]} 22. Rcd1 {[%emt 0:06:52]} Ree6 {[%emt 0:05:50]} 23. Rc2 {[%emt 0:02:19]} g5 {[%emt 0:02:01]} 24. hxg5 {[%emt 0:04:47]} Qxg5 {[%emt 0:00:11]} 25. Kf1 {[%emt 0:02:07]} h4 {[%emt 0:02:09]} 26. Ke1 {[%emt 0:01:09]} hxg3 {[%emt 0:05:25]} 27. fxg3 {[%emt 0:00:35]} Rh2 {[%emt 0:00:23]} 28. g4 {[%emt 0:01:02]} Rg6 {[%emt 0:02:06]} 29. Qf2 {[%emt 0:00:26]} Qxg4 {[%emt 0:00:41]} 30. Rdd2 {[%emt 0:00:22]} Bc8 {[%emt 0:05:16]} 31. Re2 {[%emt 0:00:29]} Qg5 {[%emt 0:01:17]} 32. Qf4 {[%emt 0:00:28]} Qxf4 {[%emt 0:04:38]} 33. exf4 {[%emt 0:00:07]} Bf5 {[%emt 0:00:40]} 34. Bxe4 {[%emt 0:01:04]} Rg4 35. Bg2 0-1